bitfinex/quotes_BTCUSD_20230118
["timestamp","ask_amount","ask_price","bid_price","bid_amount"]
[1674028884321,0.001,21316.0,21315.0,0.30915097]
[1674028884573,0.001,21316.0,21315.0,0.30974335]
[1674028885401,0.470131,21316.0,21315.0,0.30974335]
[1674028885648,0.001,21316.0,21315.0,0.30915097]
[1674028886163,0.95350965,21317.0,21315.0,0.30915097]
[1674028886492,0.48438665,21317.0,21315.0,0.30915097]
[1674028886715,0.95349565,21317.0,21315.0,0.30915097]
[1674028887195,0.95349565,21317.0,21315.0,0.22415097]
[1674028887493,0.321869,21316.0,21315.0,0.31115097]
[1674028887757,0.791,21316.0,21315.0,0.31115097]
[1674028888033,0.469131,21316.0,21315.0,0.31115097]
[1674028888270,0.466931,21316.0,21315.0,0.31115097]
[1674028888789,0.48436965,21317.0,21315.0,0.22415097]
[1674028889146,0.001,21316.0,21315.0,0.31015097]
[1674028889613,0.48346965,21317.0,21315.0,0.31015097]
[1674028889872,0.48346965,21317.0,21315.0,0.22415097]
[1674028890116,0.48346965,21317.0,21315.0,0.31215097]
[1674028890372,0.95257865,21317.0,21315.0,0.22415097]
[1674028890640,0.321869,21316.0,21315.0,0.31115097]
[1674028890906,0.48346965,21317.0,21315.0,0.31115097]
[1674028891954,0.48346965,21317.0,21315.0,0.22415097]
[1674028892188,0.48346965,21317.0,21315.0,0.31215097]
[1674028893796,0.01436065,21317.0,21315.0,0.31215097]
[1674028893992,0.01436065,21317.0,21315.0,0.54215097]
[1674028899144,0.48347465,21317.0,21315.0,0.54215097]
[1674028899395,0.321869,21316.0,21315.0,0.54215097]
[1674028899647,0.95069865,21317.0,21315.0,0.54215097]
[1674028900157,1.09569865,21317.0,21315.0,0.54215097]
[1674028900416,0.317869,21316.0,21315.0,0.54215097]
[1674028900694,1.256131,21316.0,21315.0,0.54215097]
[1674028900966,1.365731,21316.0,21315.0,0.54215097]
[1674028901500,1.365731,21316.0,21315.0,0.45415097]
[1674028901755,1.365731,21316.0,21315.0,0.54115097]
[1674028902582,1.359131,21316.0,21315.0,0.54115097]
[1674028902831,1.249531,21316.0,21315.0,0.54115097]
[1674028903621,0.938262,21316.0,21315.0,0.54115097]
[1674028903897,1.260127,21316.0,21315.0,0.54115097]
[1674028904930,1.254727,21316.0,21315.0,0.54115097]
[1674028904934,2.71347489,21316.0,21315.0,0.54115097]
[1674028905195,3.15214727,21316.0,21315.0,0.54115097]
[1674028905448,3.03983263,21316.0,21315.0,0.54115097]
[1674028905704,3.50896363,21316.0,21315.0,0.54115097]
[1674028905960,3.79000597,21316.0,21315.0,0.54115097]
[1674028906504,3.29492053,21316.0,21315.0,0.54115097]
[1674028906743,3.18260589,21316.0,21315.0,0.54115097]
[1674028907283,3.29492053,21316.0,21315.0,0.54115097]
[1674028908580,3.46364823,21316.0,21315.0,0.54115097]
[1674028908811,3.29492053,21316.0,21315.0,0.54115097]
[1674028909323,3.79000597,21316.0,21315.0,0.54115097]
[1674028909569,3.46364823,21316.0,21315.0,0.54115097]
[1674028910591,3.89920597,21316.0,21315.0,0.54115097]
[1674028910843,3.78728571,21316.0,21315.0,0.33843444]
[1674028911091,4.01225649,21316.0,21315.0,0.33843444]
[1674028911854,3.46053359,21316.0,21315.0,0.33843444]
[1674028912109,3.40415462,21316.0,21315.0,0.33843444]
[1674028912875,3.29405462,21316.0,21315.0,0.33843444]
[1674028913146,3.46278232,21316.0,21315.0,0.33843444]
[1674028913646,3.29405462,21316.0,21315.0,0.33843444]
[1674028913905,3.46278232,21316.0,21315.0,0.33843444]
[1674028914170,3.46279213,21316.0,21315.0,0.33843444]
[1674028914433,3.89011157,21316.0,21315.0,0.33843444]
[1674028914696,4.55206107,21316.0,21315.0,0.33843444]
[1674028915222,4.32709029,21316.0,21315.0,0.25143444]
[1674028915510,4.32709029,21316.0,21315.0,0.25843444]
[1674028915741,4.13648137,21316.0,21315.0,0.25843444]
[1674028916006,4.57947085,21316.0,21315.0,0.25843444]
[1674028916284,4.80418208,21316.0,21315.0,0.25843444]
[1674028916776,4.52296924,21316.0,21315.0,0.25843444]
[1674028917019,4.03156009,21316.0,21315.0,0.25843444]
[1674028917270,4.14428208,21316.0,21315.0,0.25843444]
[1674028918309,4.03156155,21316.0,21315.0,0.25843444]
[1674028918823,4.14428208,21316.0,21315.0,0.25843444]
[1674028919048,4.61838425,21316.0,21315.0,0.25843444]
[1674028919350,3.91957085,21316.0,21315.0,0.25843444]
[1674028919562,4.14420561,21316.0,21315.0,0.25843444]
[1674028919827,4.36884054,21316.0,21315.0,0.25843444]
[1674028920619,4.0876277,21316.0,21315.0,0.25843444]
[1674028920867,4.36884054,21316.0,21315.0,0.25843444]
[1674028921121,4.79997832,21316.0,21315.0,0.25843444]
[1674028922399,4.57534339,21316.0,21315.0,0.25843444]
[1674028922671,4.79997127,21316.0,21315.0,0.25843444]
[1674028922953,4.91847357,21316.0,21315.0,0.25843444]
[1674028923230,4.69384569,21316.0,21315.0,0.25843444]
[1674028923478,4.80613949,21316.0,21315.0,0.25843444]
[1674028923735,4.91847357,21316.0,21315.0,0.25843444]
[1674028924055,4.75002065,21316.0,21315.0,0.25843444]
[1674028925288,4.9184562,21316.0,21315.0,0.25843444]
[1674028925546,4.75002065,21316.0,21315.0,0.25843444]
[1674028927126,4.90406632,21316.0,21315.0,0.25843444]
[1674028927356,4.91845122,21316.0,21315.0,0.25843444]
[1674028928633,4.80610606,21316.0,21315.0,0.25843444]
[1674028929150,4.91845122,21316.0,21315.0,0.25843444]
[1674028929644,5.03123349,21316.0,21315.0,0.25843444]
[1674028929900,5.50533566,21316.0,21315.0,0.25843444]
[1674028930155,5.39254901,21316.0,21315.0,0.25843444]
[1674028930913,5.39255491,21316.0,21315.0,0.25843444]
[1674028931761,5.50533566,21316.0,21315.0,0.25843444]
[1674028932258,5.03123349,21316.0,21315.0,0.25843444]
[1674028932778,5.0312153,21316.0,21315.0,0.25843444]
[1674028933057,4.75000246,21316.0,21315.0,0.25843444]
[1674028933287,4.42325034,21316.0,21315.0,0.25843444]
[1674028933808,4.42325034,21316.0,21315.0,0.237]
[1674028933809,4.19861558,21316.0,21315.0,0.237]
[1674028934059,4.3670698,21316.0,21315.0,0.237]
[1674028934274,4.61798173,21316.0,21315.0,0.237]
[1674028935027,4.61798173,21316.0,21315.0,0.23688575]
[1674028935279,4.19861558,21316.0,21315.0,0.23688575]
[1674028936536,4.47982842,21316.0,21315.0,0.23688575]
[1674028936780,4.36715189,21316.0,21315.0,0.23688575]
[1674028937282,4.19861558,21316.0,21315.0,0.23688575]
[1674028937525,4.47982842,21316.0,21315.0,0.23688575]
[1674028938282,4.7293209,21316.0,21315.0,0.23688575]
[1674028938799,4.72912846,21316.0,21315.0,0.23688575]
[1674028939051,4.72422846,21316.0,21315.0,0.23688575]
[1674028939560,4.44320806,21316.0,21315.0,0.23688575]
[1674028940340,3.96910589,21316.0,21315.0,0.23688575]
[1674028941314,3.19730589,21316.0,21315.0,0.23688575]
[1674028941568,3.30690589,21316.0,21315.0,0.23688575]
[1674028941794,3.30590589,21316.0,21315.0,0.23688575]
[1674028942311,3.64335046,21316.0,21315.0,0.23688575]
[1674028942827,3.60862766,21316.0,21315.0,0.23688575]
[1674028943098,4.27670144,21316.0,21315.0,0.23688575]
[1674028943632,3.64337374,21316.0,21315.0,0.23688575]
[1674028943874,3.30590589,21316.0,21315.0,0.23688575]
[1674028944391,3.64337374,21316.0,21315.0,0.23688575]
[1674028945158,3.64337374,21316.0,21315.0,0.24699875]
[1674028948505,3.30590589,21316.0,21315.0,0.24699875]
[1674028948787,3.78000806,21316.0,21315.0,0.24699875]
[1674028949293,4.48000807,21316.0,21315.0,0.24699875]
[1674028949583,4.48000807,21316.0,21315.0,7.5e-07]
[1674028949841,5.25891381,21316.0,21314.0,0.00351886]
[1674028950177,2.09236413,21315.0,21314.0,0.00351886]
[1674028950418,3.65478638,21315.0,21314.0,0.00351886]
[1674028950663,5.63505652,21315.0,21314.0,0.00351886]
[1674028952208,5.74465652,21315.0,21314.0,0.00351886]
[1674028952798,5.83665652,21315.0,21314.0,0.00351886]
[1674028953806,5.87082015,21315.0,21314.0,0.00351886]
[1674028954090,5.12379109,21315.0,21314.0,0.00351886]
[1674028955107,4.78636214,21315.0,21314.0,0.00351886]
[1674028955849,5.48636215,21315.0,21314.0,0.23351886]
[1674028956363,5.82372809,21315.0,21314.0,0.23351886]
[1674028956617,6.97410137,21315.0,21314.0,0.23351886]
[1674028957367,6.67099289,21315.0,21314.0,0.23351886]
[1674028957626,0.15,21314.0,21308.0,0.3097]
[1674028957870,0.1101,21309.0,21308.0,0.3097]
[1674028958129,0.1101,21309.0,21306.0,0.00369271]
[1674028958130,2.33054595,21309.0,21306.0,0.00369271]
[1674028958384,0.321865,21308.0,21306.0,0.00369271]
[1674028958641,0.321865,21307.0,21306.0,0.00369271]
[1674028958898,1.260523,21307.0,21306.0,0.00369271]
[1674028960154,1.269523,21307.0,21306.0,0.00369271]
[1674028962208,1.84258988,21307.0,21306.0,0.00369271]
[1674028962981,1.569523,21307.0,21306.0,0.00369271]
[1674028963225,2.00769982,21307.0,21306.0,0.00369271]
[1674028963792,2.00769982,21307.0,21303.0,0.00122081]
[1674028963793,2.94663668,21307.0,21303.0,0.00122081]
[1674028964049,1.06004182,21306.0,21303.0,0.00122081]
[1674028964317,1.260611,21305.0,21303.0,0.00122081]
[1674028964568,0.321865,21304.0,21303.0,0.00122081]
[1674028964835,0.938746,21305.0,21303.0,0.00122081]
[1674028964836,0.938765,21305.0,21303.0,0.00122081]
[1674028965089,0.708765,21305.0,21303.0,0.00288266]
[1674028965333,0.708765,21305.0,21303.0,0.00122081]
[1674028966554,0.717765,21305.0,21303.0,0.00122081]
[1674028967555,0.321865,21304.0,21303.0,0.00122081]
[1674028967810,0.79126,21304.0,21303.0,0.00122081]
[1674028968081,0.469395,21304.0,21303.0,0.00122081]
[1674028968341,0.93879,21304.0,21303.0,0.00122081]
[1674028969122,1.260655,21304.0,21303.0,0.00122081]
[1674028969409,1.269655,21304.0,21303.0,0.00122081]
[1674028969671,0.94779,21304.0,21303.0,0.00122081]
[1674028970255,1.269655,21304.0,21303.0,0.00122081]
[1674028971285,0.94779,21304.0,21303.0,0.00122081]
[1674028971559,0.94779,21304.0,21301.0,1.25777888]
[1674028972120,0.478395,21304.0,21301.0,1.25777888]
[1674028972910,0.478396,21304.0,21302.0,0.1092]
[1674028973175,0.469391,21305.0,21302.0,0.1092]
[1674028973454,0.009,21304.0,21302.0,0.1092]
[1674028974477,0.93878,21305.0,21302.0,0.1092]
[1674028974481,0.947783,21305.0,21302.0,0.1092]
[1674028974737,0.938783,21305.0,21302.0,0.1092]
[1674028976054,0.009,21304.0,21302.0,0.1092]
[1674028976322,0.938783,21305.0,21302.0,0.1092]
[1674028976588,0.478389,21305.0,21304.0,0.1093]
[1674028977900,0.938762,21305.0,21304.0,0.1093]
[1674028978206,0.947762,21305.0,21304.0,0.1093]
[1674028979825,0.478373,21305.0,21304.0,0.1093]
[1674028980119,0.009,21305.0,21304.0,0.10937933]
[1674028980387,0.009,21305.0,21304.0,0.2194]
[1674028980923,0.947746,21305.0,21304.0,0.2194]
[1674028982732,0.947746,21305.0,21302.0,0.3392]
[1674028983500,0.947746,21305.0,21302.0,0.33927934]
[1674028984069,0.938746,21305.0,21302.0,0.3392]
[1674028984324,0.947746,21305.0,21302.0,0.3392]
[1674028985647,0.478373,21305.0,21302.0,0.3392]
[1674028986190,0.478373,21305.0,21304.0,0.1101]
[1674028986974,0.469369,21306.0,21304.0,0.1101]
[1674028987232,0.009,21305.0,21304.0,0.1101]
[1674028988020,0.938734,21306.0,21304.0,0.1101]
[1674028989043,0.948734,21306.0,21304.0,0.1101]
[1674028990537,0.479369,21306.0,21304.0,0.1101]
[1674028990804,0.01,21306.0,21305.0,0.1093]
[1674028991058,0.01,21306.0,21305.0,0.119907]
[1674028991314,0.479351,21306.0,21305.0,0.1093]
[1674028991565,0.01,21306.0,21305.0,0.1093]
[1674028992098,0.469349,21307.0,21305.0,0.1093]
[1674028992353,0.01,21306.0,21305.0,0.1093]
[1674028992891,0.469349,21307.0,21305.0,0.10921729]
[1674028993169,0.473349,21307.0,21306.0,0.1099]
[1674028993427,0.469349,21307.0,21306.0,0.1099]
[1674028993939,0.469349,21307.0,21306.0,0.1049]
[1674028995467,0.473349,21307.0,21306.0,0.1049]
[1674028995468,0.469349,21307.0,21306.0,0.1049]
[1674028995757,0.525349,21307.0,21306.0,0.1049]
[1674028997893,0.525349,21307.0,21303.0,0.73869718]
[1674028998139,0.24672595,21307.0,21306.0,0.1101]
[1674028998404,0.24672595,21307.0,21306.0,0.120705]
[1674028998405,0.056,21307.0,21306.0,0.120705]
[1674028998667,0.056,21307.0,21306.0,0.1101]
[1674028999758,0.056,21307.0,21306.0,0.22]
[1674029000019,0.056,21307.0,21306.0,0.230603]
[1674029000284,0.056,21307.0,21306.0,0.22]
[1674029000865,0.46928,21310.0,21306.0,0.340303]
[1674029001148,0.87700974,21311.0,21309.0,0.1092]
[1674029001405,0.87700974,21311.0,21310.0,0.1101]
[1674029001674,0.82823775,21311.0,21310.0,0.1101]
[1674029002191,0.35897975,21311.0,21310.0,0.1101]
[1674029002482,0.35897975,21311.0,21310.0,0.2202]
[1674029002745,0.35897975,21311.0,21310.0,0.230791]
[1674029003567,0.36097975,21311.0,21310.0,0.294791]
[1674029003828,0.36097975,21311.0,21310.0,0.29487031]
[1674029004097,0.002,21311.0,21310.0,0.29487031]
[1674029005457,0.002,21311.0,21310.0,0.40497031]
[1674029005718,0.002,21311.0,21310.0,0.87423331]
[1674029006085,0.002,21311.0,21310.0,0.653954]
[1674029006086,0.002,21311.0,21310.0,0.184691]
[1674029006296,0.002,21311.0,21310.0,0.414691]
[1674029007241,0.002,21311.0,21310.0,0.40417931]
[1674029007451,0.002,21311.0,21310.0,0.294]
[1674029009707,0.471241,21311.0,21310.0,0.294]
[1674029011342,0.940482,21311.0,21310.0,0.294]
[1674029011599,1.262347,21311.0,21310.0,0.294]
[1674029013163,0.940482,21311.0,21310.0,0.294]
[1674029013413,2.11884258,21311.0,21310.0,0.294]
[1674029013923,2.00874258,21311.0,21310.0,0.294]
[1674029015216,1.680947,21311.0,21310.0,0.294]
[1674029019023,2.61975684,21311.0,21310.0,0.294]
[1674029019291,1.680947,21311.0,21310.0,0.294]
[1674029019541,2.61975728,21311.0,21310.0,0.294]
[1674029020328,2.94755286,21311.0,21310.0,0.294]
[1674029021109,2.61975728,21311.0,21310.0,0.294]
[1674029022003,2.61775728,21311.0,21310.0,0.23]
[1674029022266,2.65775728,21311.0,21310.0,0.235]
[1674029022516,1.678947,21311.0,21310.0,0.23]
[1674029022782,1.718947,21311.0,21310.0,0.235]
[1674029024154,2.65772924,21311.0,21310.0,0.235]
[1674029024884,1.308847,21311.0,21310.0,0.235]
[1674029025139,1.300347,21311.0,21310.0,0.235]
[1674029025442,0.978482,21311.0,21310.0,0.235]
[1674029027236,0.509241,21311.0,21310.0,0.235]
[1674029027750,0.85708448,21311.0,21310.0,0.235]
[1674029028074,2.79922901,21311.0,21310.0,0.235]
[1674029028766,2.80156882,21311.0,21310.0,0.235]
[1674029029267,2.50156882,21311.0,21310.0,0.235]
[1674029029535,2.23912901,21311.0,21310.0,0.235]
[1674029030504,1.91726401,21311.0,21310.0,0.235]
[1674029030725,2.23912901,21311.0,21310.0,0.235]
[1674029031499,1.91726401,21311.0,21310.0,0.235]
[1674029031757,1.300347,21311.0,21310.0,0.235]
[1674029032009,1.9172375,21311.0,21310.0,0.235]
[1674029032231,2.2391025,21311.0,21310.0,0.235]
[1674029032514,1.9172375,21311.0,21310.0,0.235]
[1674029032803,1.300347,21311.0,21310.0,0.235]
[1674029033046,0.978482,21311.0,21310.0,0.235]
[1674029033551,1.91723102,21311.0,21310.0,0.235]
[1674029033812,2.53909602,21311.0,21310.0,0.235]
[1674029034810,2.23909602,21311.0,21310.0,0.235]
[1674029035064,2.53909602,21311.0,21310.0,0.235]
[1674029035581,2.53909602,21311.0,21310.0,0.2469881]
[1674029036299,2.65153583,21311.0,21310.0,0.2469881]
[1674029036540,1.91723102,21311.0,21310.0,0.2469881]
[1674029036803,2.23909602,21311.0,21310.0,0.2469881]
[1674029037807,1.300347,21311.0,21310.0,0.2469881]
[1674029038057,0.978482,21311.0,21310.0,0.2469881]
[1674029038309,0.509241,21311.0,21310.0,0.2469881]
[1674029039554,0.938482,21311.0,21310.0,0.2419881]
[1674029040611,0.941482,21311.0,21310.0,0.2986494]
[1674029040855,0.941482,21311.0,21310.0,0.2969881]
[1674029041661,0.472241,21311.0,21310.0,0.2969881]
[1674029041963,0.941482,21311.0,21310.0,0.2969881]
[1674029042183,0.003,21311.0,21310.0,0.2969881]
[1674029042445,0.94173149,21311.0,21310.0,0.2969881]
[1674029042705,1.73283749,21311.0,21310.0,0.2969881]
[1674029043245,2.20207849,21311.0,21310.0,0.2969881]
[1674029043728,1.88021349,21311.0,21310.0,0.2969881]
[1674029044512,2.78317801,21311.0,21310.0,0.2969881]
[1674029044758,3.11097359,21311.0,21310.0,0.2969881]
[1674029045022,3.57160811,21311.0,21310.0,0.2969881]
[1674029045291,3.24381253,21311.0,21310.0,0.2969881]
[1674029045553,3.24381253,21311.0,21310.0,0.2819881]
[1674029045828,2.78317801,21311.0,21310.0,0.2819881]
[1674029046340,2.6707382,21311.0,21310.0,0.2819881]
[1674029048150,2.89561781,21311.0,21310.0,0.2819881]
[1674029048405,2.6707382,21311.0,21310.0,0.2819881]
[1674029048919,2.89552437,21311.0,21310.0,0.2819881]
[1674029049447,2.89552437,21311.0,21310.0,0.2669881]
[1674029050572,3.22331995,21311.0,21310.0,0.2669881]
[1674029051874,3.05466024,21311.0,21310.0,0.2669881]
[1674029052125,3.33575975,21311.0,21310.0,0.2669881]
[1674029052417,2.89569068,21311.0,21310.0,0.2669881]
[1674029052653,2.48335854,21311.0,21310.0,0.2669881]
[1674029052905,1.99266752,21311.0,21310.0,0.2669881]
[1674029053167,2.31453252,21311.0,21310.0,0.2669881]
[1674029053945,1.99266752,21311.0,21310.0,0.2669881]
[1674029054213,1.88012005,21311.0,21310.0,0.2669881]
[1674029056244,1.99266752,21311.0,21310.0,0.2669881]
[1674029056516,2.63710728,21311.0,21310.0,0.2669881]
[1674029056748,2.8059333,21311.0,21310.0,0.2669881]
[1674029056970,2.48335854,21311.0,21310.0,0.2669881]
[1674029057223,2.16149354,21311.0,21310.0,0.2669881]
[1674029057538,1.99266752,21311.0,21310.0,0.2669881]
[1674029057766,1.88012005,21311.0,21310.0,0.2669881]
[1674029058034,1.41087905,21311.0,21310.0,0.2669881]
[1674029058296,0.469241,21311.0,21310.0,0.2669881]
[1674029058865,0.469241,21311.0,21310.0,0.26707135]
[1674029059121,0.469241,21311.0,21310.0,0.2669881]
[1674029059923,0.469241,21311.0,21310.0,0.26707135]
[1674029060221,0.469241,21311.0,21310.0,0.2669881]
[1674029061001,0.469241,21311.0,21310.0,0.26707135]
[1674029061270,0.469241,21311.0,21310.0,0.2669881]
[1674029065618,1.42111132,21312.0,21310.0,0.2669881]
[1674029065871,1.42110932,21312.0,21310.0,0.2670749]
[1674029066123,1.42110932,21312.0,21310.0,0.2669881]
[1674029066848,1.42110932,21312.0,21310.0,0.2119881]
[1674029067094,1.42410932,21312.0,21310.0,0.2609881]
[1674029067347,1.31156185,21312.0,21310.0,0.2609881]
[1674029068912,1.42410932,21312.0,21310.0,0.2609881]
[1674029071436,1.31156185,21312.0,21310.0,0.2609881]
[1674029071963,1.42410932,21312.0,21310.0,0.2609881]
[1674029072221,1.31156185,21312.0,21310.0,0.2609881]
[1674029072445,1.42410932,21312.0,21310.0,0.2609881]
[1674029072982,1.42410932,21312.0,21310.0,0.2610749]
[1674029072983,1.31156185,21312.0,21310.0,0.2610749]
[1674029074492,0.84232185,21312.0,21310.0,0.2610749]
[1674029075002,0.83572185,21312.0,21310.0,0.2610749]
[1674029075266,0.83572185,21312.0,21310.0,0.2609881]
[1674029075267,0.36648785,21312.0,21310.0,0.2609881]
[1674029075527,0.83570685,21312.0,21310.0,0.2610749]
[1674029076039,0.83570685,21312.0,21310.0,0.2609881]
[1674029076274,0.83190685,21312.0,21310.0,0.2609881]
[1674029076536,1.30112585,21312.0,21310.0,0.2609881]
[1674029076793,1.29732585,21312.0,21310.0,0.2609881]
[1674029077807,1.29732585,21312.0,21310.0,0.2610749]
[1674029079062,0.82630685,21312.0,21310.0,0.2610749]
[1674029081176,0.82630685,21312.0,21310.0,0.2609881]
[1674029083848,0.82630685,21312.0,21310.0,0.29585997]
[1674029083849,0.003,21312.0,21310.0,0.29585997]
[1674029084123,0.003,21312.0,21311.0,0.010589]
[1674029084689,0.003,21312.0,21311.0,0.0106728]
[1674029085204,0.4692826,21313.0,21311.0,8.68e-05]
[1674029085467,0.023,21312.0,21311.0,0.0126728]
[1674029085718,0.023,21312.0,21311.0,0.0126718]
[1674029086255,0.47111103,21313.0,21310.0,0.22399132]
[1674029086536,0.97431003,21313.0,21311.0,0.005]
[1674029087608,0.94031003,21313.0,21311.0,0.002]
[1674029087918,0.94031003,21313.0,21310.0,0.22399132]
[1674029088183,0.97431003,21313.0,21311.0,0.005]
[1674029089819,0.97431003,21313.0,21311.0,0.0050868]
[1674029090094,1.08451003,21313.0,21311.0,0.005]
[1674029090348,1.55370703,21313.0,21311.0,0.005]
[1674029090609,1.6662545,21313.0,21311.0,0.005]
[1674029090877,0.93866236,21312.0,21311.0,0.005]
[1674029091668,1.6662755,21313.0,21311.0,0.005]
[1674029092169,1.6322755,21313.0,21310.0,0.22399132]
[1674029092437,0.96166322,21312.0,21311.0,0.002]
[1674029092737,2.23304869,21312.0,21311.0,0.002]
[1674029092970,2.85491369,21312.0,21311.0,0.002]
[1674029093228,2.53191369,21312.0,21310.0,0.2119881]
[1674029093454,1.16118547,21312.0,21311.0,0.005]
[1674029093710,2.53145623,21312.0,21310.0,0.2119881]
[1674029094026,1.18418547,21312.0,21311.0,0.002]
[1674029094239,2.23309063,21312.0,21311.0,0.0020868]
[1674029094490,2.21009063,21312.0,21310.0,0.2119881]
[1674029094747,0.1102,21311.0,21310.0,0.2119881]
[1674029095008,1.9807812,21311.0,21310.0,0.2119881]
[1674029095288,2.2969462,21311.0,21310.0,0.2119881]
[1674029095547,1.9750812,21311.0,21310.0,0.2120749]
[1674029095810,1.9780812,21311.0,21310.0,0.2699881]
[1674029096319,1.97808176,21311.0,21310.0,0.2699881]
[1674029097417,1.97498176,21311.0,21310.0,0.2699881]
[1674029098713,2.40939423,21311.0,21310.0,0.2699881]
[1674029100225,2.29684676,21311.0,21310.0,0.2699881]
[1674029100488,2.40939423,21311.0,21310.0,0.2699881]
[1674029101539,2.70939423,21311.0,21310.0,0.2699881]
[1674029101822,2.40939423,21311.0,21310.0,0.2699881]
[1674029102348,2.70939423,21311.0,21310.0,0.2699881]
[1674029103143,2.40939423,21311.0,21310.0,0.2699881]
[1674029103436,3.27681196,21311.0,21310.0,0.2699881]
[1674029103705,3.10138594,21311.0,21310.0,0.2699881]
[1674029103966,3.3825441,21311.0,21310.0,0.2699881]
[1674029104700,3.54151366,21311.0,21310.0,0.2699881]
[1674029104970,3.71029682,21311.0,21310.0,0.2699881]
[1674029105232,3.7102994,21311.0,21310.0,0.2699881]
[1674029105534,3.54151366,21311.0,21310.0,0.2699881]
[1674029105842,3.71024973,21311.0,21310.0,0.2699881]
[1674029107478,3.15757454,21311.0,21310.0,0.2699881]
[1674029107744,3.27004101,21311.0,21310.0,0.2699881]
[1674029108003,3.10130494,21311.0,21310.0,0.2699881]
[1674029113620,2.80130494,21311.0,21310.0,0.2699881]
[1674029113877,2.77943994,21311.0,21310.0,0.2699881]
[1674029114161,3.10130494,21311.0,21310.0,0.2699881]
[1674029114673,2.80130494,21311.0,21310.0,0.2699881]
[1674029114944,2.36697347,21311.0,21310.0,0.2699881]
[1674029115253,2.68883847,21311.0,21310.0,0.2699881]
[1674029115510,2.36697347,21311.0,21310.0,0.2699881]
[1674029116548,1.029682,21311.0,21310.0,0.27007153]
[1674029116828,0.941482,21311.0,21310.0,0.2699881]
[1674029119991,0.939382,21311.0,21310.0,0.2699881]
[1674029123035,0.939382,21311.0,21310.0,0.27007153]
[1674029123296,0.939382,21311.0,21310.0,0.28066153]
[1674029123555,0.939382,21311.0,21310.0,0.2805781]
[1674029123819,0.939382,21311.0,21310.0,0.2699881]
[1674029124090,0.939382,21311.0,21310.0,0.27007153]
[1674029124358,0.939382,21311.0,21310.0,0.2805781]
[1674029124629,0.939382,21311.0,21310.0,0.2699881]
[1674029124875,0.939382,21311.0,21310.0,0.2805781]
[1674029124876,0.934582,21311.0,21310.0,0.2805781]
[1674029125137,0.934582,21311.0,21310.0,0.2699881]
[1674029125939,1.87332119,21311.0,21310.0,0.2699881]
[1674029126181,2.19518619,21311.0,21310.0,0.2699881]
[1674029126439,1.86992119,21311.0,21310.0,0.2699881]
[1674029127520,2.19178619,21311.0,21310.0,0.2699881]
[1674029127778,1.86992119,21311.0,21310.0,0.2699881]
[1674029128035,2.19178619,21311.0,21310.0,0.2699881]
[1674029128290,1.86992119,21311.0,21310.0,0.2699881]
[1674029131348,2.19178619,21311.0,21310.0,0.2699881]
[1674029132376,2.30425266,21311.0,21310.0,0.2699881]
[1674029133391,3.57350397,21311.0,21310.0,0.2699881]
[1674029133651,3.90858358,21311.0,21310.0,0.2699881]
[1674029133895,3.91708358,21311.0,21310.0,0.2699881]
[1674029134169,3.91712615,21311.0,21310.0,0.2699881]
[1674029134943,3.91712615,21311.0,21310.0,0.0699881]
[1674029135213,3.36445096,21311.0,21310.0,0.0699881]
[1674029135470,3.47697128,21311.0,21310.0,0.0699881]
[1674029136289,3.47027307,21311.0,21305.0,0.28336561]
[1674029136534,0.1098,21308.0,21305.0,0.58137039]
[1674029136789,0.30052595,21308.0,21306.0,8.344e-05]
[1674029137040,0.1098,21308.0,21307.0,0.010599]
[1674029137321,0.1049,21308.0,21306.0,8.344e-05]
[1674029137841,0.46929,21309.0,21307.0,0.010601]
[1674029138346,0.008,21308.0,21307.0,0.010599]
[1674029139352,0.008,21308.0,21307.0,0.240599]
[1674029139613,0.46929,21309.0,21307.0,0.240599]
[1674029139865,0.946575,21309.0,21307.0,0.235]
[1674029140132,0.946575,21309.0,21308.0,0.010598]
[1674029140383,0.008,21308.0,21307.0,0.235]
[1674029140638,0.469285,21309.0,21307.0,0.23]
[1674029140897,0.477294,21309.0,21308.0,0.010598]
[1674029141180,0.469294,21309.0,21308.0,0.010598]
[1674029141418,0.477294,21309.0,21308.0,0.015598]
[1674029141663,0.477294,21309.0,21308.0,0.010598]
[1674029141912,0.474694,21309.0,21308.0,0.010598]
[1674029142163,0.474694,21309.0,21307.0,0.23]
[1674029142532,0.474694,21309.0,21308.0,0.010596]
[1674029142700,0.466694,21309.0,21308.0,0.010596]
[1674029142933,0.466694,21309.0,21308.0,0.005]
[1674029143206,0.472494,21309.0,21308.0,0.005]
[1674029143710,0.472494,21309.0,21308.0,0.015596]
[1674029143993,0.008,21309.0,21308.0,0.015596]
[1674029146014,0.008,21309.0,21308.0,0.34799339]
[1674029146328,0.04824749,21311.0,21308.0,0.66607115]
[1674029146530,0.04824749,21311.0,21309.0,0.1102]
[1674029146771,0.04824749,21311.0,21310.0,0.010592]
[1674029147034,0.9450711,21312.0,21310.0,0.010592]
[1674029147285,0.9450711,21312.0,21309.0,0.1102]
[1674029147533,0.9450711,21312.0,21310.0,0.010589]
[1674029147801,0.9450711,21312.0,21309.0,0.1222]
[1674029148040,0.008,21311.0,21310.0,0.010589]
[1674029149077,0.9450711,21312.0,21310.0,0.010589]
[1674029149328,0.9450711,21312.0,21309.0,0.1102]
[1674029149585,0.008,21311.0,21310.0,0.022589]
[1674029149839,0.008,21311.0,21310.0,0.010589]
[1674029150153,0.008,21311.0,21310.0,0.02159]
[1674029150358,0.9450681,21312.0,21308.0,0.1102]
[1674029150615,0.9450681,21312.0,21310.0,0.012]
[1674029150616,0.008,21311.0,21310.0,0.012]
[1674029150866,0.477241,21311.0,21310.0,0.012]
[1674029153446,0.469241,21311.0,21308.0,0.1102]
[1674029153705,0.522241,21311.0,21310.0,0.001]
[1674029156775,0.518441,21311.0,21310.0,0.001]
[1674029157334,0.51825606,21311.0,21310.0,0.001]
[1674029160398,0.98749706,21311.0,21310.0,0.001]
[1674029160917,2.07621914,21311.0,21310.0,0.001]
[1674029161176,2.39808414,21311.0,21310.0,0.001]
[1674029161441,3.41670979,21311.0,21310.0,0.001]
[1674029161992,3.41667736,21311.0,21310.0,0.001]
[1674029162522,3.30418768,21311.0,21310.0,0.000798]
[1674029162778,3.31268768,21311.0,21310.0,0.000798]
[1674029163040,3.42517857,21311.0,21310.0,0.000798]
[1674029164322,3.31268768,21311.0,21310.0,0.000798]